fUST/lending_fUST_20241225
["ID","MTS","AMOUNT","RATE_DAILY","PERIOD"]
[346542166,1735063833084,-500.0,0.00012999,2]
[346542168,1735063833094,-500.0,0.00012999,2]
[346542170,1735063833104,-33295.0596035,0.00013,2]
[346542187,1735063838840,-20693.31318014,0.00013,2]
[346542188,1735063838852,-2790.02676326,0.00013,2]
[346542189,1735063838974,-350.0,0.00013,2]
[346542207,1735063840630,-1347.2624374,0.00013,2]
[346542208,1735063840642,-535.77515254,0.00013,2]
[346542238,1735063846608,-5640.79613295,0.0001287,2]
[346542239,1735063846618,-75613.4636043,0.00013,2]
[346542240,1735063846627,-593.80945754,0.00013,2]
[346542241,1735063846639,-779.40069698,0.00013,2]
[346542242,1735063846653,-1619.358304,0.00013,2]
[346542243,1735063865752,1000.0,0.00023,120]
[346542244,1735063934471,1000.0,0.0002,90]
[346542245,1735063957122,1000.0,0.00017,60]
[346542261,1735064849116,-444.73962816,0.00011185,2]
[346542262,1735064849140,-444.73962816,0.00011298,2]
[346542263,1735064849162,-444.73962816,0.00012,2]
[346542264,1735064849186,-1243.31189876,0.00012794,2]
[346542265,1735064852100,-4955.29873398,0.00012794,2]
[346542266,1735064852126,-483.98622224,0.000129,2]
[346542267,1735064852151,-300.0,0.00012998,2]
[346542268,1735064852174,-300.0,0.00012998,2]
[346542269,1735064852198,-500.0,0.00012999,2]
[346542270,1735064852221,-500.0,0.00012999,2]
[346542271,1735064852248,-500.0,0.00012999,2]
[346542272,1735064852271,-500.0,0.00012999,2]
[346542273,1735064852294,-287.75532565,0.00012999,2]
[346542274,1735064852319,-500.0,0.00012999,2]
[346542275,1735064852345,-500.0,0.00012999,2]
[346542276,1735064852371,-500.0,0.00012999,2]
[346542277,1735064852396,-453.78604372,0.00012999,2]
[346542278,1735064852421,-157.22207772,0.00012999,2]
[346542279,1735064852443,-500.0,0.00012999,2]
[346542280,1735064852465,-500.0,0.00012999,2]
[346542281,1735064852487,-815.9361872,0.00013,3]
[346542287,1735064946119,-359.2868429,0.00012,2]
[346542288,1735064946139,-4955.29873398,0.00012539,2]
[346542289,1735064946159,-300.0,0.00012665,2]
[346542290,1735064946180,-300.0,0.00012665,2]
[346542291,1735064946200,-4955.29873398,0.00012666,2]
[346542292,1735064953308,431.13891202,0.00012771,2]
[346542293,1735064961747,446.87253346,0.00012771,2]
[346542294,1735064977101,746.1682013,0.00012771,2]
[346542295,1735064992917,746.1682013,0.00012771,2]
[346542298,1735065008085,746.1682013,0.00012771,2]
[346542299,1735065023331,445.90083214,0.00012771,2]
[346542351,1735065032655,-446.87253346,0.000129,2]
[346542352,1735065032665,-299.29566784,0.000129,2]
[346542353,1735065032674,-300.0,0.00012999,2]
[346542354,1735065032683,-39.7387987,0.00012999,2]
[346542356,1735065032695,-260.2612013,0.00012999,2]
[346542357,1735065032704,-397.79952424,0.00013,3]
[346542359,1735065032716,-635.79707351,0.00013,3]
[346542361,1735065032727,-7351.1052613,0.00013,3]
[346542364,1735065032738,-22413.363411,0.00013,3]
[346542374,1735065032876,-8385.99854275,0.00013,3]
[346542375,1735065032886,-44062.84874962,0.00013,2]
[346542376,1735065032897,-2860.48558844,0.00013,2]
[346542377,1735065032908,-738.20142119,0.00013,2]
[346542438,1735065038488,-13226.63242784,0.00013,2]
[346542447,1735065038668,-318.6037046,0.00013,2]
[346542448,1735065038683,-1057.24128019,0.00013,2]
[346542476,1735065043315,-32222.0420482,0.00013,2]
[346542477,1735065043324,-1000.0,0.00013,13]
[346542478,1735065043334,-351.6615925,0.00013,2]
[346542479,1735065043344,-153.4013351,0.00013,2]
[346542480,1735065043353,-153.0,0.00013,2]
[346542482,1735065043363,-352.1566237,0.00013,2]
[346542484,1735065043373,-431.3845326,0.00013,2]
[346542485,1735065043383,-306.0,0.00013,2]
[346542489,1735065043392,-306.5852626,0.00013,2]
[346542490,1735065043400,-306.6811682,0.00013,2]
[346542492,1735065043409,-270.425,0.0001302,2]
[346542495,1735065043419,-446.87253344,0.00013075,2]
[346542496,1735065043427,-214.1010006,0.000131,2]
[346542497,1735065043437,-306.756811,0.000131,2]
[346542498,1735065043446,-153.0,0.00013104,2]
[346542499,1735065043455,-153.0,0.00013152,2]
[346542500,1735065043465,-446.87253344,0.00013249,2]
[346542501,1735065043476,-382.0,0.00013304,2]
[346542502,1735065043486,-502.55,0.00013304,2]
[346542503,1735065043496,-6198.61063275,0.00013352,2]
[346542504,1735065043508,-221.02,0.00013399,2]
[346542506,1735065043517,-446.87253344,0.00013424,2]
[346542508,1735065043527,-192.0,0.00013429,2]
[346542509,1735065043536,-299.29566779,0.00013469,2]
[346542511,1735065043547,-1000.0,0.00013527,2]
[346542513,1735065043556,-1000.0,0.00013545,2]
[346542514,1735065043566,-1000.0,0.0001355,2]
[346542515,1735065043576,-446.87253344,0.00013598,2]
[346542516,1735065043586,-666.0,0.00013598,2]
[346542517,1735065043595,-1000.0,0.00013617,2]
[346542518,1735065043604,-500.0,0.00013673,2]
[346542519,1735065043614,-500.0,0.00013673,2]
[346542520,1735065043623,-500.0,0.00013673,2]
[346542521,1735065043632,-500.0,0.00013673,2]
[346542522,1735065043642,-500.0,0.00013673,2]
[346542523,1735065043651,-500.0,0.00013673,2]
[346542524,1735065043660,-500.0,0.00013673,2]
[346542525,1735065043669,-503.51640862,0.00013673,2]
[346542526,1735065043679,-500.0,0.00013673,2]
[346542527,1735065043688,-478.05500604,0.00013673,2]
[346542528,1735065043698,-500.0,0.00013697,2]
[346542529,1735065043708,-500.0,0.00013697,2]
[346542530,1735065043717,-500.0,0.00013697,2]
[346542531,1735065043727,-303.93581655,0.00013697,2]
[346542532,1735065043736,-2417.90533713,0.00013698,2]
[346542533,1735065043746,-8027.28576321,0.00013698,2]
[346542534,1735065043756,-151.0,0.00013698,2]
[346542535,1735065043765,-151.0,0.00013698,2]
[346542536,1735065043774,-58.07007914,0.00013698,2]
[346542537,1735065043883,-92.92992086,0.00013698,2]
[346542538,1735065043892,-151.0,0.00013698,2]
[346542539,1735065043902,-151.0,0.00013698,2]
[346542541,1735065043912,-151.0,0.00013698,2]
[346542542,1735065043921,-99.74923129,0.00013698,2]
[346542543,1735065043938,-51.25076871,0.00013698,2]
[346542544,1735065043947,-151.0,0.00013698,2]
[346542545,1735065043957,-151.0,0.00013698,2]
[346542546,1735065043966,-151.0,0.00013698,2]
[346542547,1735065043975,-151.0,0.00013698,2]
[346542548,1735065043984,-151.0,0.00013698,2]
[346542549,1735065043993,-151.0,0.00013698,2]
[346542550,1735065044003,-151.0,0.00013698,2]
[346542551,1735065044012,-151.0,0.00013698,2]
[346542552,1735065044022,-151.0,0.00013698,2]
[346542553,1735065044031,-151.0,0.00013698,2]
[346542554,1735065044040,-209.7674,0.00013698,2]
[346542555,1735065044050,-151.0,0.00013698,2]
[346542556,1735065044059,-151.0,0.00013698,2]
[346542557,1735065044068,-151.0,0.00013698,2]
[346542559,1735065044078,-151.0,0.00013698,2]
[346542561,1735065044087,-501.59104386,0.00013698,2]
[346542562,1735065044096,-500.0,0.00013698,2]
[346542563,1735065044105,-501.26357368,0.00013698,2]
[346542564,1735065044115,-500.3499789,0.00013698,2]
[346542565,1735065044124,-500.42765598,0.00013698,2]
[346542566,1735065044133,-500.67719492,0.00013698,2]
[346542567,1735065044143,-500.60432043,0.00013698,2]
[346542568,1735065044152,-501.18358387,0.00013698,2]
[346542569,1735065044163,-500.96236346,0.00013698,2]
[346542570,1735065044172,-500.0,0.00013698,2]
[346542571,1735065044181,-361.57679763,0.00013698,2]
[346542572,1735065044313,-138.79788995,0.00013698,2]
[346542573,1735065044324,-342.16437428,0.00013698,2]
[346542574,1735065044336,-157.83562572,0.00013698,2]
[346542575,1735065044346,-247.47489,0.00013698,2]
[346542576,1735065044355,-247.47489,0.00013698,2]
[346542577,1735065044364,-247.47489,0.00013698,2]
[346542578,1735065044374,-247.47489,0.00013698,2]
[346542579,1735065044386,-247.47489,0.00013698,2]
[346542580,1735065044395,-247.47489,0.00013698,2]
[346542581,1735065044404,-247.47489,0.00013698,2]
[346542582,1735065044414,-501.50833372,0.00013698,2]
[346542583,1735065044423,-500.0,0.00013698,2]
[346542584,1735065044432,-500.0,0.00013698,2]
[346542585,1735065044442,-500.0,0.00013698,2]
[346542586,1735065044451,-500.0,0.00013698,2]
[346542587,1735065044461,-500.0,0.00013698,2]
[346542588,1735065044473,-500.0,0.00013698,2]
[346542589,1735065044482,-500.0,0.00013698,2]
[346542590,1735065044492,-500.0,0.00013698,2]
[346542591,1735065044501,-500.0,0.00013698,2]
[346542592,1735065044512,-500.0,0.00013698,2]
[346542593,1735065044523,-501.26795804,0.00013698,2]
[346542594,1735065044532,-500.0,0.00013698,2]
[346542595,1735065044543,-500.0,0.00013698,2]
[346542596,1735065044553,-500.0,0.00013698,2]
[346542597,1735065044563,-500.0,0.00013698,2]
[346542598,1735065044572,-500.0,0.00013698,2]
[346542599,1735065044581,-500.0,0.00013698,2]
[346542600,1735065044590,-500.0,0.00013698,2]
[346542601,1735065044600,-500.0,0.00013698,2]
[346542602,1735065044611,-500.0,0.00013698,2]
[346542603,1735065044621,-500.0,0.00013698,2]
[346542604,1735065044630,-500.0,0.00013698,2]
[346542605,1735065044640,-151.0,0.00013698,2]
[346542606,1735065044648,-151.0,0.00013698,2]
[346542607,1735065044658,-151.0,0.00013698,2]
[346542608,1735065044667,-268.068388,0.00013698,2]
[346542609,1735065044676,-500.0,0.00013698,2]
[346542610,1735065044685,-604.00934335,0.00013698,2]
[346542611,1735065044694,-500.0,0.00013698,2]
[346542612,1735065044703,-503.82120432,0.00013698,2]
[346542613,1735065044712,-500.0,0.00013698,2]
[346542614,1735065044721,-500.0,0.00013698,2]
[346542615,1735065044731,-500.0,0.00013698,2]
[346542616,1735065044740,-500.0,0.00013698,2]
[346542617,1735065044749,-500.0,0.00013698,2]
[346542618,1735065044760,-500.0,0.00013698,2]
[346542619,1735065044769,-500.0,0.00013698,2]
[346542620,1735065044779,-500.0,0.00013698,2]
[346542621,1735065044788,-500.0,0.00013698,2]
[346542622,1735065044797,-500.0,0.00013698,2]
[346542623,1735065044806,-500.0,0.00013698,2]
[346542624,1735065044815,-500.0,0.00013698,2]
[346542625,1735065044824,-501.02567978,0.00013698,2]
[346542626,1735065044833,-500.0,0.00013698,2]
[346542627,1735065044843,-500.0,0.00013698,2]
[346542628,1735065044853,-500.0,0.00013698,2]
[346542629,1735065044863,-500.0,0.00013698,2]
[346542630,1735065044873,-500.0,0.00013698,2]
[346542631,1735065044883,-500.0,0.00013698,2]
[346542632,1735065044892,-501.19738323,0.00013698,2]
[346542633,1735065044902,-500.0,0.00013698,2]
[346542634,1735065044912,-500.0,0.00013698,2]
[346542635,1735065044922,-500.0,0.00013698,2]
[346542636,1735065044932,-501.95454289,0.00013698,2]
[346542637,1735065044941,-500.0,0.00013698,2]
[346542638,1735065044951,-506.1558531,0.00013698,2]
[346542639,1735065044961,-500.0,0.00013698,2]
[346542640,1735065044970,-151.0,0.00013698,2]
[346542641,1735065044979,-151.0,0.00013698,2]
[346542642,1735065044989,-158.281967,0.00013698,2]
[346542643,1735065044999,-500.0,0.00013698,2]
[346542644,1735065045009,-501.8512209,0.00013698,2]
[346542645,1735065045019,-502.06399652,0.00013698,2]
[346542646,1735065045028,-500.0,0.00013698,2]
[346542647,1735065045039,-631.79,0.00013698,2]
[346542648,1735065045048,-199.25476,0.00013698,2]
[346542649,1735065045058,-199.25476,0.00013698,2]
[346542650,1735065045067,-199.25476,0.00013698,2]
[346542651,1735065045076,-500.0,0.00013698,2]
[346542652,1735065045086,-199.25476,0.00013698,2]
[346542653,1735065045095,-500.0,0.00013698,2]
[346542654,1735065045105,-199.25476,0.00013698,2]
[346542655,1735065045114,-199.25476,0.00013698,2]
[346542656,1735065045124,-199.25476,0.00013698,2]
[346542657,1735065045133,-500.0,0.00013698,2]
[346542658,1735065045142,-500.0,0.00013698,2]
[346542659,1735065045151,-500.0,0.00013698,2]
[346542660,1735065045161,-199.25476,0.00013698,2]
[346542661,1735065045170,-199.25476,0.00013698,2]
[346542662,1735065045179,-500.0,0.00013698,2]
[346542663,1735065045189,-199.25476,0.00013698,2]
[346542664,1735065045198,-199.25476,0.00013698,2]
[346542665,1735065045207,-199.25476,0.00013698,2]
[346542666,1735065045216,-266.378923,0.00013698,2]
[346542667,1735065045226,-199.25476,0.00013698,2]
[346542668,1735065045235,-199.25476,0.00013698,2]
[346542669,1735065045244,-500.0,0.00013698,2]
[346542670,1735065045254,-151.0,0.00013698,2]
[346542671,1735065045263,-155.601224,0.00013698,2]
[346542672,1735065045272,-500.0,0.00013698,2]
[346542673,1735065045281,-500.0,0.00013698,2]
[346542674,1735065045291,-500.0,0.00013698,2]
[346542675,1735065045303,-563.68764349,0.00013698,2]
[346542676,1735065045312,-500.0,0.00013698,2]
[346542677,1735065045322,-517.71322676,0.00013698,2]
[346542678,1735065045331,-500.0,0.00013698,2]
[346542679,1735065045342,-503.26539064,0.00013698,2]
[346542680,1735065045351,-500.0,0.00013698,2]
[346542681,1735065045361,-500.0,0.00013698,2]
[346542682,1735065045371,-610.42471469,0.00013698,2]
[346542683,1735065045381,-502.56687461,0.00013698,2]
[346542684,1735065045391,-500.0,0.00013698,2]
[346542685,1735065045400,-500.0,0.00013698,2]
[346542686,1735065045409,-500.0,0.00013698,2]
[346542687,1735065045419,-500.0,0.00013698,2]
[346542688,1735065045428,-500.0,0.00013698,2]
[346542689,1735065045438,-500.0,0.00013698,2]
[346542690,1735065045447,-500.0,0.00013698,2]
[346542691,1735065045457,-500.0,0.00013698,2]
[346542692,1735065045467,-491.51278085,0.00013698,2]
[346542693,1735065045477,-500.0,0.00013698,2]
[346542694,1735065045486,-705.25,0.00013698,2]
[346542695,1735065045649,-500.0,0.00013698,2]
[346542696,1735065045660,-640.98816472,0.00013698,2]
[346542697,1735065045670,-195.894183,0.00013698,2]
[346542698,1735065045680,-195.894183,0.00013698,2]
[346542699,1735065045690,-195.894183,0.00013698,2]
[346542700,1735065045700,-195.894183,0.00013698,2]
[346542701,1735065045711,-195.894183,0.00013698,2]
[346542702,1735065045720,-195.894183,0.00013698,2]
[346542703,1735065045730,-195.894183,0.00013698,2]
[346542704,1735065045740,-195.894183,0.00013698,2]
[346542705,1735065045749,-500.0,0.00013698,2]
[346542706,1735065045760,-532.56858454,0.00013698,2]
[346542707,1735065045769,-500.0,0.00013698,2]
[346542708,1735065045779,-349.96633373,0.00013698,2]
[346542709,1735065045789,-500.0,0.00013698,2]
[346542710,1735065045799,-500.0,0.00013698,2]
[346542711,1735065045808,-500.0,0.00013698,2]
[346542712,1735065045818,-500.0,0.00013698,2]
[346542713,1735065045828,-500.0,0.00013698,2]
[346542714,1735065045837,-151.0,0.00013698,2]
[346542715,1735065045847,-152.337546,0.00013698,2]
[346542716,1735065045857,-500.0,0.00013698,2]
[346542717,1735065045867,-500.0,0.00013698,2]
[346542718,1735065045877,-500.0,0.00013698,2]
[346542719,1735065045886,-500.0,0.00013698,2]
[346542720,1735065045896,-657.56,0.00013698,2]
[346542721,1735065045905,-500.0,0.00013698,2]
[346542722,1735065045914,-500.0,0.00013698,2]
[346542723,1735065045924,-500.0,0.00013698,2]
[346542724,1735065045934,-500.0,0.00013698,2]
[346542725,1735065045943,-500.0,0.00013698,2]
[346542726,1735065045953,-500.0,0.00013698,2]
[346542727,1735065045963,-500.0,0.00013698,2]
[346542728,1735065045973,-703.61,0.00013698,2]
[346542730,1735065045983,-501.02143821,0.00013698,2]
[346542732,1735065045993,-501.81703898,0.00013698,2]
[346542734,1735065046003,-500.0,0.00013698,2]
[346542737,1735065046013,-500.0,0.00013698,2]
[346542739,1735065046022,-500.0,0.00013698,2]
[346542740,1735065046032,-500.0,0.00013698,2]
[346542742,1735065046043,-500.0,0.00013698,2]
[346542746,1735065046052,-500.0,0.00013698,2]
[346542749,1735065046062,-271.04371802,0.00013698,2]
[346542751,1735065046071,-500.0,0.00013698,2]
[346542753,1735065046080,-500.0,0.00013698,2]
[346542755,1735065046090,-500.0,0.00013698,2]
[346542757,1735065046100,-500.0,0.00013698,2]
[346542759,1735065046109,-500.0,0.00013698,2]
[346542760,1735065046119,-500.0,0.00013698,2]
[346542761,1735065046128,-500.0,0.00013698,2]
[346542762,1735065046138,-500.0,0.00013698,2]
[346542763,1735065046147,-500.0,0.00013698,2]
[346542764,1735065046157,-500.0,0.00013698,2]
[346542766,1735065046166,-500.0,0.00013698,2]
[346542767,1735065046175,-500.86246957,0.00013698,2]
[346542768,1735065046184,-500.0,0.00013698,2]
[346542769,1735065046194,-500.0,0.00013698,2]
[346542770,1735065046203,-245.58863842,0.00013698,2]
[346542771,1735065046212,-500.0,0.00013698,2]
[346542772,1735065046222,-500.0,0.00013698,2]
[346542773,1735065046231,-500.0,0.00013698,2]
[346542774,1735065046240,-500.0,0.00013698,2]
[346542775,1735065046249,-500.0,0.00013698,2]
[346542776,1735065046260,-500.0,0.00013698,2]
[346542777,1735065046270,-500.0,0.00013698,2]
[346542778,1735065046279,-500.0,0.00013698,2]
[346542779,1735065046288,-500.0,0.00013698,2]
[346542780,1735065046299,-500.0,0.00013698,2]
[346542781,1735065046309,-500.0,0.00013698,2]
[346542782,1735065046319,-500.0,0.00013698,2]
[346542783,1735065046328,-500.0,0.00013698,2]
[346542784,1735065046339,-151.0,0.00013698,2]
[346542785,1735065046348,-500.0,0.00013698,2]
[346542786,1735065046359,-509.06561681,0.00013698,2]
[346542787,1735065046369,-1483.25,0.00013698,2]
[346542788,1735065046380,-500.0,0.00013698,2]
[346542790,1735065046390,-151.0,0.00013698,2]
[346542791,1735065046399,-500.0,0.00013698,2]
[346542792,1735065046409,-151.0,0.00013698,2]
[346542794,1735065046418,-151.0,0.00013698,2]
[346542795,1735065046428,-151.0,0.00013698,2]
[346542796,1735065046437,-500.0,0.00013698,2]
[346542798,1735065046447,-151.0,0.00013698,2]
[346542800,1735065046456,-151.0,0.00013698,2]
[346542801,1735065046466,-151.0,0.00013698,2]
[346542803,1735065046476,-500.0,0.00013698,2]
[346542805,1735065046485,-151.0,0.00013698,2]
[346542807,1735065046495,-2468.41,0.00013698,2]
[346542808,1735065046505,-188.839991,0.00013698,2]
[346542810,1735065046515,-1723.96,0.00013698,2]
[346542812,1735065046524,-500.0,0.00013698,2]
[346542814,1735065046533,-500.0,0.00013698,2]
[346542815,1735065046543,-500.0,0.00013698,2]
[346542816,1735065046552,-500.0,0.00013698,2]
[346542817,1735065046561,-592.26,0.00013698,2]
[346542818,1735065046571,-500.0,0.00013698,2]
[346542819,1735065046580,-500.0,0.00013698,2]
[346542820,1735065046590,-501.31531326,0.00013698,2]
[346542821,1735065046599,-501.6703192,0.00013698,2]
[346542822,1735065046609,-500.0,0.00013698,2]
[346542823,1735065046619,-500.0,0.00013698,2]
[346542824,1735065046628,-500.0,0.00013698,2]
[346542825,1735065046639,-500.0,0.00013698,2]
[346542826,1735065046648,-695.75,0.00013698,2]
[346542827,1735065046658,-500.0,0.00013698,2]
[346542828,1735065046667,-500.0,0.00013698,2]
[346542829,1735065046677,-568.17826557,0.00013698,2]
[346542830,1735065046687,-500.0,0.00013698,2]
[346542831,1735065046696,-500.0,0.00013698,2]
[346542832,1735065046706,-500.0,0.00013698,2]
[346542833,1735065046715,-500.0,0.00013698,2]
[346542834,1735065046725,-500.0,0.00013698,2]
[346542835,1735065046734,-500.0,0.00013698,2]
[346542836,1735065046744,-500.0,0.00013698,2]
[346542837,1735065046754,-560.74,0.00013698,2]
[346542838,1735065046763,-500.0,0.00013698,2]
[346542839,1735065046773,-500.0,0.00013698,2]
[346542840,1735065046782,-1011.15,0.00013698,2]
[346542841,1735065046791,-500.0,0.00013698,2]
[346542842,1735065046801,-500.0,0.00013698,2]
[346542843,1735065046811,-500.0,0.00013698,2]
[346542844,1735065046824,-500.0,0.00013698,2]
[346542845,1735065046833,-960.97,0.00013698,2]
[346542846,1735065046843,-500.0,0.00013698,2]
[346542847,1735065046852,-754.04,0.00013698,2]
[346542848,1735065046863,-500.0,0.00013698,2]
[346542849,1735065046873,-500.0,0.00013698,2]
[346542850,1735065046884,-151.0,0.00013698,2]
[346542851,1735065046893,-151.0,0.00013698,2]
[346542852,1735065046902,-151.0,0.00013698,2]
[346542853,1735065046912,-501.01033589,0.00013698,2]
[346542854,1735065046922,-151.0,0.00013698,2]
[346542855,1735065046932,-151.0,0.00013698,2]
[346542856,1735065046941,-151.0,0.00013698,2]
[346542857,1735065046951,-500.0,0.00013698,2]
[346542858,1735065046961,-500.0,0.00013698,2]
[346542859,1735065046970,-500.0,0.00013698,2]
[346542860,1735065046980,-500.0,0.00013698,2]
[346542861,1735065046989,-500.0,0.00013698,2]
[346542862,1735065046999,-1143.29,0.00013698,2]
[346542863,1735065047009,-500.0,0.00013698,2]
[346542864,1735065047019,-500.0,0.00013698,2]
[346542865,1735065047029,-304.736576,0.00013698,2]
[346542866,1735065047039,-1054.46,0.00013698,2]
[346542867,1735065047049,-304.736576,0.00013698,2]
[346542868,1735065047058,-304.736576,0.00013698,2]
[346542869,1735065047068,-500.0,0.00013698,2]
[346542870,1735065047078,-304.736576,0.00013698,2]
[346542871,1735065047087,-304.736576,0.00013698,2]
[346542872,1735065047097,-500.0,0.00013698,2]
[346542873,1735065047107,-304.736576,0.00013698,2]
[346542874,1735065047116,-500.0,0.00013698,2]
[346542875,1735065047126,-304.736576,0.00013698,2]
[346542876,1735065047136,-304.736576,0.00013698,2]
[346542877,1735065047145,-304.736576,0.00013698,2]
[346542878,1735065047155,-304.736576,0.00013698,2]
[346542879,1735065047164,-304.736576,0.00013698,2]
[346542880,1735065047173,-304.736576,0.00013698,2]
[346542881,1735065047183,-500.0,0.00013698,2]
[346542882,1735065047192,-500.0,0.00013698,2]
[346542883,1735065047201,-500.0,0.00013698,2]
[346542884,1735065047211,-500.0,0.00013698,2]
[346542885,1735065047221,-501.52071253,0.00013698,2]
[346542886,1735065047231,-500.0,0.00013698,2]
[346542887,1735065047241,-1264.92,0.00013698,2]
[346542888,1735065047251,-500.0,0.00013698,2]
[346542889,1735065047261,-500.0,0.00013698,2]
[346542890,1735065047272,-500.0,0.00013698,2]
[346542891,1735065047281,-500.0,0.00013698,2]
[346542892,1735065047291,-500.0,0.00013698,2]
[346542893,1735065047305,-500.0,0.00013698,2]
[346542894,1735065047314,-151.0,0.00013698,2]
[346542895,1735065047324,-151.0,0.00013698,2]
[346542896,1735065047334,-151.0,0.00013698,2]
[346542897,1735065047345,-151.0,0.00013698,2]
[346542898,1735065047356,-151.0,0.00013698,2]
[346542899,1735065047366,-151.0,0.00013698,2]
[346542900,1735065047375,-262.633346,0.00013698,2]
[346542901,1735065047386,-262.633346,0.00013698,2]
[346542902,1735065047395,-500.0,0.00013698,2]
[346542903,1735065047405,-262.633346,0.00013698,2]
[346542904,1735065047414,-503.09485725,0.00013698,2]
[346542905,1735065047424,-262.633346,0.00013698,2]
[346542906,1735065047433,-501.18396974,0.00013698,2]
[346542907,1735065047443,-576.6,0.00013698,2]
[346542908,1735065047452,-262.633346,0.00013698,2]
[346542909,1735065047462,-262.633346,0.00013698,2]
[346542910,1735065047473,-262.633346,0.00013698,2]
[346542911,1735065047483,-262.633346,0.00013698,2]
[346542912,1735065047492,-262.633346,0.00013698,2]
[346542913,1735065047502,-262.633346,0.00013698,2]
[346542914,1735065047512,-262.633346,0.00013698,2]
[346542915,1735065047521,-262.633346,0.00013698,2]
[346542916,1735065047531,-500.0,0.00013698,2]
[346542917,1735065047541,-500.0,0.00013698,2]
[346542918,1735065047550,-392.72349,0.00013698,2]
[346542919,1735065047560,-392.72349,0.00013698,2]
[346542920,1735065047569,-392.72349,0.00013698,2]
[346542921,1735065047578,-392.72349,0.00013698,2]
[346542922,1735065047587,-500.0,0.00013698,2]
[346542923,1735065047597,-392.72349,0.00013698,2]
[346542924,1735065047606,-392.72349,0.00013698,2]
[346542925,1735065047615,-500.0,0.00013698,2]
[346542926,1735065047624,-1390.79,0.00013698,2]
[346542927,1735065047634,-500.0,0.00013698,2]
[346542928,1735065047643,-500.0,0.00013698,2]
[346542929,1735065047652,-392.72349,0.00013698,2]
[346542930,1735065047662,-392.72349,0.00013698,2]
[346542931,1735065047671,-500.0,0.00013698,2]
[346542932,1735065047680,-825.79,0.00013698,2]
[346542933,1735065047690,-198.33263793,0.00013698,2]
[346542934,1735065047699,-500.78115851,0.00013698,2]
[346542935,1735065047708,-392.72349,0.00013698,2]
[346542936,1735065047717,-500.0,0.00013698,2]
[346542937,1735065047726,-392.72349,0.00013698,2]
[346542938,1735065047735,-392.72349,0.00013698,2]
[346542939,1735065047744,-392.72349,0.00013698,2]
[346542940,1735065047753,-500.0,0.00013698,2]
[346542941,1735065047762,-500.0,0.00013698,2]
[346542942,1735065047771,-1000.0,0.00013698,2]
[346542943,1735065047781,-501.89886658,0.00013698,2]
[346542944,1735065047790,-500.0,0.00013698,2]
[346542945,1735065047800,-500.0,0.00013698,2]
[346542946,1735065047809,-1608.18,0.00013698,2]
[346542947,1735065047819,-500.0,0.00013698,2]
[346542948,1735065047828,-309.06175166,0.00013698,2]
[346542949,1735065047837,-500.0,0.00013698,2]
[346542950,1735065047846,-500.0,0.00013698,2]
[346542951,1735065047856,-500.0,0.00013698,2]
[346542952,1735065047865,-500.0,0.00013698,2]
[346542953,1735065047874,-500.0,0.00013698,2]
[346542954,1735065047884,-500.0,0.00013698,2]